bitfinex/quotes_BTCUSD_20240701
["timestamp","ask_amount","ask_price","bid_price","bid_amount"]
[1719832424770,0.00184,62877.0,62876.0,0.187043]
[1719832424980,0.00184,62877.0,62876.0,0.207043]
[1719832425181,0.00184,62877.0,62876.0,0.525129]
[1719832425591,0.00184,62877.0,62876.0,0.028]
[1719832425913,0.01555719,62877.0,62876.0,0.028]
[1719832426069,0.01555719,62877.0,62876.0,0.08230649]
[1719832426070,1.1e-06,62877.0,62876.0,0.08230649]
[1719832426279,0.01371829,62877.0,62876.0,0.08230649]
[1719832428561,0.01371829,62877.0,62876.0,1.6681271]
[1719832428808,0.01371829,62877.0,62876.0,1.61382061]
[1719832428998,0.01371829,62877.0,62876.0,1.81382061]
[1719832428999,1.1e-06,62877.0,62876.0,1.81382061]
[1719832429410,1.1e-06,62877.0,62876.0,1.81063998]
[1719832429547,1.1e-06,62877.0,62876.0,1.97297369]
[1719832432603,1.1e-06,62877.0,62876.0,1.77297369]
[1719832433473,1.1e-06,62877.0,62876.0,1.97297369]
[1719832433869,1.1e-06,62877.0,62876.0,1.77297369]
[1719832435241,1.1e-06,62877.0,62876.0,1.97297369]
[1719832436592,1.1e-06,62877.0,62876.0,1.77297369]
[1719832436953,1.1e-06,62877.0,62876.0,1.97297369]
[1719832441195,1.1e-06,62877.0,62876.0,2.49105969]
[1719832441796,1.1e-06,62877.0,62876.0,2.79105969]
[1719832443566,1.1e-06,62877.0,62876.0,2.79198369]
[1719832443819,0.0008411,62877.0,62876.0,2.77798369]
[1719832444028,0.0008411,62877.0,62876.0,2.79198369]
[1719832444230,0.00084,62877.0,62876.0,2.77798369]
[1719832444636,0.00084,62877.0,62876.0,2.79198369]
[1719832445280,0.00084,62877.0,62876.0,2.59198369]
[1719832445447,0.00084,62877.0,62876.0,2.79198369]
[1719832445895,0.00084,62877.0,62876.0,2.81498369]
[1719832446064,0.00084,62877.0,62876.0,3.13306969]
[1719832447033,0.00084,62877.0,62876.0,2.81498369]
[1719832447442,0.00084,62877.0,62876.0,2.79198369]
[1719832447614,0.00084,62877.0,62876.0,2.48628369]
[1719832447819,0.00084,62877.0,62876.0,2.68628369]
[1719832448662,0.00084,62877.0,62876.0,2.28628369]
[1719832448864,0.00084,62877.0,62876.0,2.10498369]
[1719832449066,0.00084,62877.0,62876.0,2.30498369]
[1719832450837,0.00084,62877.0,62876.0,2.10498369]
[1719832451013,0.00084,62877.0,62876.0,1.78689769]
[1719832453485,0.00084,62877.0,62876.0,1.46881169]
[1719832454208,0.00084,62877.0,62876.0,1.78689769]
[1719832454852,0.00084,62877.0,62876.0,1.58689769]
[1719832454995,0.00084,62877.0,62876.0,1.68689769]
[1719832455186,0.00084,62877.0,62876.0,1.78689769]
[1719832455791,0.00084,62877.0,62876.0,1.79481769]
[1719832458828,0.00084,62877.0,62876.0,1.69481769]
[1719832459025,0.00084,62877.0,62876.0,1.79481769]
[1719832464977,0.10404,62877.0,62876.0,1.79481769]
[1719832469651,0.10404,62877.0,62876.0,1.59481769]
[1719832469956,0.10404,62877.0,62876.0,1.79481769]
[1719832471013,0.10404,62877.0,62876.0,0.19917771]
[1719832471014,0.00084,62877.0,62876.0,0.19917771]
[1719832471236,0.18314,62877.0,62876.0,0.036844]
[1719832471406,0.19751291,62877.0,62876.0,0.036844]
[1719832472385,0.19751291,62877.0,62876.0,0.022844]
[1719832472586,0.19751291,62877.0,62876.0,0.018844]
[1719832472782,0.19751291,62877.0,62876.0,0.0741832]
[1719832473004,0.19751291,62877.0,62876.0,0.0851832]
[1719832481585,0.12021291,62877.0,62876.0,0.0851832]
[1719832482681,0.12021291,62877.0,62876.0,0.1051832]
[1719832483019,0.01521291,62877.0,62876.0,0.1051832]
[1719832483422,0.01521291,62877.0,62876.0,0.0851832]
[1719832486768,0.01521291,62877.0,62876.0,0.2642262]
[1719832488529,0.01521291,62877.0,62876.0,0.2442262]
[1719832493251,0.01521291,62877.0,62876.0,0.2642262]
[1719832493479,0.01521291,62877.0,62876.0,0.2442262]
[1719832496208,0.01521291,62877.0,62876.0,0.0851832]
[1719832497246,0.01521291,62877.0,62876.0,0.2442262]
[1719832497460,0.01521291,62877.0,62876.0,0.0851832]
[1719832500424,0.01521291,62877.0,62876.0,0.029844]
[1719832500425,1.09264018,62877.0,62876.0,0.029844]
[1719832500636,1.56693489,62877.0,62876.0,0.029844]
[1719832500810,1.91153641,62877.0,62876.0,0.029844]
[1719832501007,1.96421272,62877.0,62876.0,0.029844]
[1719832501227,1.9842194,62877.0,62876.0,0.029844]
[1719832501362,1.9642194,62877.0,62876.0,0.018844]
[1719832501802,1.9882194,62877.0,62876.0,0.019844]
[1719832501970,1.9682194,62877.0,62876.0,0.019844]
[1719832502177,1.9882194,62877.0,62876.0,0.019844]
[1719832502473,2.13097881,62877.0,62876.0,0.019844]
[1719832502813,2.13097881,62877.0,62876.0,0.009844]
[1719832502814,2.05830237,62877.0,62876.0,0.009844]
[1719832503196,1.91554296,62877.0,62876.0,0.009844]
[1719832503397,2.05915933,62877.0,62876.0,0.009844]
[1719832503604,1.919399,62877.0,62876.0,0.009844]
[1719832503763,1.89201589,62877.0,62876.0,0.009844]
[1719832503965,1.91940716,62877.0,62876.0,0.009844]
[1719832505118,0.74855668,62877.0,62876.0,0.009844]
[1719832505320,0.94770618,62877.0,62876.0,0.009844]
[1719832505527,0.92031491,62877.0,62876.0,0.009844]
[1719832506024,0.99921491,62877.0,62876.0,0.009844]
[1719832506155,0.99521491,62877.0,62876.0,0.008844]
[1719832506372,0.99921491,62877.0,62876.0,0.008844]
[1719832506771,0.99521491,62877.0,62876.0,0.008844]
[1719832507588,1.00021491,62877.0,62876.0,0.009844]
[1719832507762,0.99521491,62877.0,62876.0,0.008844]
[1719832508165,0.99621491,62877.0,62876.0,0.009844]
[1719832508834,0.01621291,62877.0,62876.0,0.009844]
[1719832509039,0.01621291,62877.0,62876.0,0.0445028]
[1719832509240,0.01621291,62877.0,62876.0,0.0645028]
[1719832509561,0.01621291,62877.0,62876.0,0.0445028]
[1719832509562,0.00184,62877.0,62876.0,0.0445028]
[1719832509965,0.01824553,62877.0,62876.0,0.0445028]
[1719832510088,0.00184,62877.0,62876.0,0.0445028]
[1719832510286,0.01824553,62877.0,62876.0,0.0445028]
[1719832510481,0.01824553,62877.0,62876.0,0.2035458]
[1719832511090,0.01824553,62877.0,62876.0,0.0445028]
[1719832511318,0.01824553,62877.0,62876.0,0.2035458]
[1719832511516,0.00184,62877.0,62876.0,0.5416318]
[1719832511754,0.00184,62877.0,62876.0,0.8597178]
[1719832513119,0.00184,62877.0,62876.0,1.52064278]
[1719832513544,0.00184,62877.0,62876.0,1.72064278]
[1719832514307,0.00184,62877.0,62876.0,1.71964278]
[1719832514484,0.00084,62877.0,62876.0,1.72764278]
[1719832514890,0.00084,62877.0,62876.0,1.73364278]
[1719832516164,0.00084,62877.0,62876.0,1.72764278]
[1719832516701,0.00084,62877.0,62876.0,1.71964278]
[1719832517089,0.00084,62877.0,62876.0,1.73064278]
[1719832517290,0.00084,62877.0,62876.0,1.53064278]
[1719832518474,0.00084,62877.0,62876.0,1.54264278]
[1719832525225,0.00084,62877.0,62876.0,1.61504278]
[1719832530543,0.00084,62877.0,62876.0,1.81504278]
[1719832530922,0.00084,62877.0,62876.0,2.95121478]
[1719832531119,0.00084,62877.0,62876.0,2.65612878]
[1719832531593,0.00084,62877.0,62876.0,2.97421478]
[1719832531966,0.00084,62877.0,62876.0,2.96221478]
[1719832532373,0.00084,62877.0,62876.0,2.64712878]
[1719832532577,0.00084,62877.0,62876.0,2.57472878]
[1719832532780,0.00084,62877.0,62876.0,2.15172878]
[1719832532984,0.00084,62877.0,62876.0,2.41012878]
[1719832533214,0.00084,62877.0,62876.0,2.21012878]
[1719832533418,0.00084,62877.0,62876.0,2.22412878]
[1719832533590,0.00084,62877.0,62876.0,2.21012878]
[1719832534002,0.00084,62877.0,62876.0,2.22412878]
[1719832534207,0.00084,62877.0,62876.0,2.23812878]
[1719832534648,0.00084,62877.0,62876.0,2.22412878]
[1719832535048,0.00084,62877.0,62876.0,2.23812878]
[1719832535304,0.00084,62877.0,62876.0,2.43812878]
[1719832535822,0.00084,62877.0,62876.0,2.36572878]
[1719832537842,0.00084,62877.0,62876.0,2.16572878]
[1719832539290,0.00084,62877.0,62876.0,2.36572878]
[1719832539491,0.00084,62877.0,62876.0,2.16572878]
[1719832540233,0.00084,62877.0,62876.0,2.36572878]
[1719832540869,0.00084,62877.0,62876.0,2.58872878]
[1719832541721,0.00084,62877.0,62876.0,2.56072878]
[1719832541970,0.00084,62877.0,62876.0,2.57472878]
[1719832543043,0.00084,62877.0,62876.0,2.58872878]
[1719832544385,0.00084,62877.0,62876.0,2.90681478]
[1719832545627,0.00084,62877.0,62876.0,3.03898048]
[1719832546398,0.00084,62877.0,62876.0,3.02498048]
[1719832546821,0.00084,62877.0,62876.0,3.09105868]
[1719832547052,0.00084,62877.0,62876.0,3.03898048]
[1719832547949,0.00084,62877.0,62876.0,3.10504627]
[1719832548491,0.00084,62877.0,62876.0,3.03896933]
[1719832549355,0.00084,62877.0,62876.0,3.02496933]
[1719832549614,0.00084,62877.0,62876.0,3.03896933]
[1719832549812,0.00084,62877.0,62876.0,3.02496933]
[1719832550020,0.00084,62877.0,62876.0,3.01096933]
[1719832550164,0.00084,62877.0,62876.0,3.03896933]
[1719832550569,0.00084,62877.0,62876.0,3.02496933]
[1719832551036,0.00084,62877.0,62876.0,2.90681478]
[1719832551347,0.00084,62877.0,62876.0,3.15261845]
[1719832551507,0.00841,62889.0,62876.0,3.15261845]
[1719832551508,0.00841,62889.0,62888.0,2.558037]
[1719832551665,0.00084,62898.0,62888.0,2.558037]
[1719832551666,0.00084,62898.0,62892.0,0.959502]
[1719832551870,0.00084,62898.0,62892.0,2.49386098]
[1719832552079,0.00084,62898.0,62892.0,2.83486598]
[1719832552917,0.00084,62898.0,62892.0,2.84886598]
[1719832553153,0.00084,62898.0,62892.0,2.87689666]
[1719832553690,0.00084,62898.0,62892.0,2.86289666]
[1719832554115,0.30084,62893.0,62892.0,2.87689666]
[1719832554236,0.30084,62893.0,62892.0,2.89089666]
[1719832558406,0.30084,62893.0,62892.0,3.0230286]
[1719832558657,0.28893759,62893.0,62892.0,3.0230286]
[1719832559716,0.28893759,62893.0,62892.0,3.0090286]
[1719832559892,0.22801759,62893.0,62892.0,2.9950286]
[1719832560057,0.21801759,62893.0,62892.0,3.0090286]
[1719832560259,0.21801759,62893.0,62892.0,3.0230286]
[1719832560663,0.21801759,62893.0,62892.0,3.02302823]
[1719832560880,0.21801759,62893.0,62892.0,3.01404046]
[1719832561084,0.21801759,62893.0,62892.0,3.02804046]
[1719832561285,0.00084,62898.0,62897.0,2.36889]
[1719832561286,1e-06,62898.0,62897.0,2.36889]
[1719832561495,0.00841,62907.0,62897.0,2.36889]
[1719832561496,0.00841,62907.0,62899.0,1.182155]
[1719832561811,0.00841,62907.0,62899.0,2.26226498]
[1719832562039,0.00841,62907.0,62899.0,2.76123498]
[1719832562708,0.00841,62907.0,62899.0,2.67603498]
[1719832562853,0.0973,62902.0,62899.0,2.67603498]
[1719832563263,0.0973,62902.0,62899.0,2.47203498]
[1719832563455,0.0973,62902.0,62899.0,2.30669378]
[1719832563691,0.0973,62902.0,62899.0,2.10669378]
[1719832563889,0.0973,62902.0,62899.0,2.32069378]
[1719832564271,0.0973,62902.0,62899.0,1.80272378]
[1719832564453,0.00841,62907.0,62899.0,1.80272378]
[1719832564454,0.48544,62900.0,62899.0,1.28475378]
[1719832564735,0.49640519,62900.0,62899.0,1.28475378]
[1719832566256,0.49640519,62900.0,62899.0,1.27075378]
[1719832566768,0.49640519,62900.0,62899.0,1.29875378]
[1719832566984,0.49640519,62900.0,62899.0,1.11992278]
[1719832567190,0.49640519,62900.0,62899.0,1.22592278]
[1719832567396,0.48544,62900.0,62899.0,1.32592278]
[1719832567580,0.48544,62900.0,62899.0,1.33992278]
[1719832567784,0.49640686,62900.0,62899.0,1.33992278]
[1719832568624,0.49640686,62900.0,62899.0,1.85789278]
[1719832569024,0.48544,62900.0,62899.0,1.85789278]
[1719832569427,0.49639667,62900.0,62899.0,1.85789278]
[1719832571180,0.49639667,62900.0,62899.0,1.65789278]
[1719832572990,0.48544,62900.0,62899.0,1.65789278]
[1719832573190,0.49639667,62900.0,62899.0,1.65789278]
[1719832577280,0.49639667,62900.0,62899.0,1.85789278]
[1719832578761,0.31179667,62900.0,62899.0,1.85789278]
[1719832578984,0.30084,62900.0,62899.0,2.17586278]
[1719832579920,0.30084,62900.0,62899.0,2.24816278]
[1719832580609,0.30084,62900.0,62899.0,2.22016278]
[1719832581036,0.30084,62900.0,62899.0,2.76613278]
[1719832581178,0.30084,62900.0,62899.0,2.65516278]
[1719832581782,0.30084,62900.0,62899.0,2.58286278]
[1719832582005,0.30084,62900.0,62899.0,2.56886278]
[1719832582207,0.30084,62900.0,62899.0,2.55486278]
[1719832582414,0.30084,62900.0,62899.0,2.58286278]
[1719832582899,0.30084,62900.0,62899.0,2.38286278]
[1719832583105,0.30084,62900.0,62899.0,2.58286278]
[1719832583885,0.30084,62900.0,62899.0,2.48396278]
[1719832584276,0.30084,62900.0,62899.0,2.50329953]
[1719832584476,0.30084,62900.0,62899.0,2.60689953]
[1719832586818,0.30084,62900.0,62899.0,2.59289953]
[1719832587641,0.30084,62900.0,62899.0,2.60689953]
[1719832588220,0.30084,62900.0,62899.0,2.41819953]
[1719832588986,0.48694,62900.0,62899.0,1.67722953]
[1719832589188,0.49789148,62900.0,62899.0,1.67722953]
[1719832589933,0.49789148,62900.0,62899.0,1.66322953]
[1719832590134,0.48694,62900.0,62899.0,1.15925953]
[1719832590336,0.48694,62900.0,62899.0,1.46322953]
[1719832590337,0.49792871,62900.0,62899.0,1.46322953]
[1719832590530,0.49792871,62900.0,62899.0,1.66322953]
[1719832590903,0.48694,62900.0,62899.0,1.67722953]
[1719832591328,0.49792871,62900.0,62899.0,0.504955]
[1719832591521,0.49792871,62900.0,62899.0,0.186985]
[1719832591724,0.49792871,62900.0,62899.0,0.504955]
[1719832592884,0.49792871,62900.0,62899.0,0.490955]
[1719832593778,0.49792871,62900.0,62899.0,0.504955]
[1719832593950,0.49792871,62900.0,62899.0,0.5893404]
[1719832594490,0.48694,62900.0,62899.0,0.5893404]
[1719832594746,0.49794073,62900.0,62899.0,0.5893404]
[1719832595161,0.49794073,62900.0,62899.0,0.6093404]
[1719832595508,0.49794073,62900.0,62899.0,0.5893404]
[1719832597585,0.49794073,62900.0,62899.0,0.6093404]
[1719832597968,0.49794073,62900.0,62899.0,0.5893404]
[1719832602192,0.65692273,62900.0,62899.0,0.028]
[1719832603833,0.65692273,62900.0,62899.0,0.014]
[1719832604033,1.29285273,62900.0,62899.0,0.014]
[1719832604240,1.29285273,62900.0,62899.0,0.028]
[1719832604241,1.61081773,62900.0,62899.0,0.028]
[1719832604856,1.61081773,62900.0,62899.0,0.014]
[1719832605117,1.61081773,62900.0,62899.0,0.028]
[1719832605318,1.61081773,62900.0,62899.0,0.014]
[1719832605676,1.61081773,62900.0,62899.0,0.022]
[1719832605878,1.61081773,62900.0,62899.0,0.008]
[1719832606032,1.29285273,62900.0,62899.0,0.008]
[1719832607455,1.29285273,62900.0,62899.0,0.018]
[1719832610594,0.97488773,62900.0,62899.0,0.018]
[1719832611012,0.97488773,62900.0,62899.0,0.0357921]
[1719832611654,0.65692273,62900.0,62899.0,0.0357921]
[1719832611868,0.65692273,62900.0,62899.0,0.018]
[1719832613268,0.41974073,62900.0,62899.0,0.494955]
[1719832613709,0.31184073,62900.0,62899.0,0.832925]
[1719832613916,0.30084,62900.0,62899.0,0.9481083]
[1719832614127,0.31266049,62900.0,62899.0,0.9281083]
[1719832614742,0.31266049,62900.0,62899.0,0.9381083]
[1719832615106,0.31266049,62900.0,62899.0,0.9481083]
[1719832615907,0.30084,62900.0,62899.0,0.9481083]
[1719832616135,0.30084,62900.0,62899.0,0.9401083]
[1719832616456,0.31262346,62900.0,62899.0,1.42041728]
[1719832616664,0.31262346,62900.0,62899.0,1.41041728]
[1719832616859,0.30084,62900.0,62899.0,1.41041728]
[1719832617090,0.30084,62900.0,62899.0,1.42441728]
[1719832617338,0.30084,62900.0,62899.0,1.41041728]
[1719832617621,0.30084,62900.0,62899.0,1.42441728]
[1719832617840,0.30084,62900.0,62899.0,1.43841728]
[1719832618067,0.30084,62900.0,62899.0,1.40441728]
[1719832618290,0.30084,62900.0,62899.0,1.08644728]
[1719832618733,0.30084,62900.0,62899.0,0.9241083]
[1719832618976,0.30084,62900.0,62899.0,0.9381083]
[1719832619441,0.31271488,62900.0,62899.0,0.9381083]
[1719832620207,0.50321488,62900.0,62899.0,0.9381083]
[1719832620834,0.41581488,62900.0,62899.0,0.9381083]
[1719832622644,0.31271488,62900.0,62899.0,0.9381083]
[1719832622849,0.31271488,62900.0,62899.0,0.9581083]
[1719832627139,0.31271488,62900.0,62899.0,0.9381083]
[1719832628665,0.31271488,62900.0,62899.0,0.028]
[1719832634770,0.66489688,62900.0,62899.0,0.028]
[1719832635255,1.37322688,62900.0,62899.0,0.028]
[1719832636127,1.36971619,62900.0,62899.0,0.028]
[1719832640768,1.68768119,62900.0,62899.0,0.028]
[1719832643144,1.78288312,62900.0,62899.0,0.028]
[1719832644646,1.28884312,62900.0,62899.0,0.028]
[1719832644847,0.476938,62901.0,62900.0,3.21711688]
[1719832645051,0.476938,62901.0,62900.0,3.37594788]
[1719832645052,1.205256,62901.0,62900.0,3.37594788]
[1719832645389,1.54392641,62901.0,62900.0,3.37594788]
[1719832645539,1.22596741,62901.0,62900.0,3.37594788]
[1719832645741,1.34493199,62901.0,62900.0,3.37594788]
[1719832646129,1.20596741,62901.0,62900.0,3.37594788]
[1719832646336,1.32493186,62901.0,62900.0,3.38294788]
[1719832646536,1.19278171,62901.0,62900.0,3.41779712]
[1719832646738,1.19278171,62901.0,62900.0,3.43179712]
[1719832646739,1.20596676,62901.0,62900.0,3.43179712]
[1719832646957,1.32493257,62901.0,62900.0,3.43179712]
[1719832647208,1.32493245,62901.0,62900.0,3.43179712]
[1719832647416,1.32493245,62901.0,62900.0,3.41779712]
[1719832647780,1.52263245,62901.0,62900.0,3.41779712]
[1719832648041,1.36283245,62901.0,62900.0,3.41779712]
[1719832648242,0.80242271,62901.0,62900.0,3.42679712]
[1719832649654,0.48446371,62901.0,62900.0,3.42679712]
[1719832650024,0.48446371,62901.0,62900.0,3.26796612]
[1719832650665,0.16650471,62901.0,62900.0,3.26796612]
[1719832651241,0.48446371,62901.0,62900.0,3.26796612]
[1719832656430,0.16650471,62901.0,62900.0,3.26796612]
[1719832659329,0.00752571,62901.0,62900.0,3.26796612]
[1719832661016,0.25415594,62902.0,62901.0,3.20959117]
[1719832661160,0.25415594,62902.0,62901.0,3.53075588]
[1719832662710,0.25415594,62902.0,62901.0,3.54275588]
[1719832662711,0.26733074,62902.0,62901.0,3.54275588]
[1719832663522,0.17215821,62902.0,62901.0,3.54275588]
[1719832665478,0.29112387,62902.0,62901.0,3.54275588]
[1719832665651,0.29498674,62902.0,62901.0,3.54275588]
[1719832665854,0.28184986,62902.0,62901.0,3.54275588]
[1719832666048,0.29503034,62902.0,62901.0,3.54275588]
[1719832666260,0.29503034,62902.0,62901.0,3.38392488]
[1719832666663,0.29116747,62902.0,62901.0,3.38392488]
[1719832667144,0.2,62920.0,62911.0,1.51488672]
[1719832667347,0.0724,62912.0,62911.0,1.51488672]
[1719832667518,0.23473898,62912.0,62911.0,1.51488672]
[1719832667721,0.33473898,62912.0,62911.0,1.51488672]
[1719832667946,1.44740298,62912.0,62911.0,1.51488672]
[1719832668263,1.44740298,62912.0,62911.0,1.51588672]
[1719832668472,1.44740298,62912.0,62911.0,1.51488672]
[1719832668672,1.45422283,62912.0,62911.0,1.51488672]
[1719832668933,1.45422283,62912.0,62911.0,1.51688672]
[1719832669382,1.45422283,62912.0,62911.0,1.51588672]
[1719832669728,1.45522283,62912.0,62911.0,1.51588672]
[1719832670133,1.58732283,62912.0,62911.0,1.51588672]
[1719832674620,1.20193509,62912.0,62911.0,0.001]
[1719832674947,1.53015563,62912.0,62911.0,0.001]
[1719832675094,1.54333191,62912.0,62911.0,0.001]
[1719832675518,1.5433319,62912.0,62911.0,0.001]
[1719832677690,2.42356961,62912.0,62911.0,0.001]
[1719832677893,2.50463645,62912.0,62911.0,0.001]
[1719832678968,2.51809084,62912.0,62911.0,0.001]
[1719832680359,2.71809084,62912.0,62911.0,0.001]
[1719832681306,2.71809084,62912.0,62900.0,0.000924]
[1719832681307,1.097497,62901.0,62900.0,0.000924]
[1719832681434,2.2813278,62901.0,62900.0,0.000924]
[1719832681628,2.3145698,62901.0,62900.0,0.000924]
[1719832682131,2.5145698,62901.0,62900.0,0.000924]
[1719832682340,2.5120093,62901.0,62900.0,0.000924]
[1719832682518,2.67689678,62901.0,62900.0,0.000924]
[1719832682667,2.73519298,62901.0,62900.0,0.000924]
[1719832682869,2.74919298,62901.0,62900.0,0.001924]
[1719832683373,3.21348998,62901.0,62900.0,0.002924]
[1719832684374,3.14201996,62901.0,62900.0,0.002924]
[1719832684573,3.21388327,62901.0,62900.0,0.002924]
[1719832684973,3.14201996,62901.0,62900.0,0.002924]
[1719832685224,3.21388168,62901.0,62900.0,0.002924]
[1719832685904,2.87101668,62901.0,62900.0,0.002924]
[1719832686992,2.75858468,62901.0,62900.0,0.002924]
[1719832687171,2.88879068,62901.0,62900.0,0.002924]
[1719832687688,2.86360789,62901.0,62900.0,0.002924]
[1719832687890,2.86360822,62901.0,62900.0,0.00284612]
[1719832688268,3.02383995,62901.0,62900.0,0.00284612]
[1719832688517,2.64659795,62901.0,62900.0,0.00284612]
[1719832688727,2.05198925,62901.0,62900.0,0.00284612]
[1719832688856,1.81670227,62901.0,62900.0,0.00284612]
[1719832689684,1.79370227,62901.0,62900.0,0.00084612]
[1719832689904,0.91830429,62901.0,62900.0,0.00084612]
[1719832690106,0.91830429,62901.0,62900.0,0.00284612]
[1719832690107,0.92830429,62901.0,62900.0,0.00284612]
[1719832691133,0.61034529,62901.0,62900.0,0.02436313]
[1719832691410,0.50434529,62901.0,62900.0,0.12526313]
[1719832691613,0.49217327,62901.0,62900.0,0.10374612]
[1719832691815,0.49217327,62901.0,62900.0,0.10474612]
[1719832692074,0.49017327,62901.0,62900.0,0.10374612]
[1719832692413,0.49117327,62901.0,62900.0,0.10374612]
[1719832692836,0.17621427,62901.0,62900.0,0.12998313]
[1719832693077,0.18007714,62901.0,62900.0,0.12998313]
[1719832693301,0.49803614,62901.0,62900.0,0.12998313]
[1719832694483,0.49403614,62901.0,62900.0,0.12898313]
[1719832694712,0.49403614,62901.0,62900.0,0.12798313]
[1719832695215,0.49703614,62901.0,62900.0,0.12798313]
[1719832695537,0.17907714,62901.0,62900.0,0.12798313]
[1719832696040,0.17607714,62901.0,62900.0,0.12798313]
[1719832696440,0.17707714,62901.0,62900.0,0.12798313]
[1719832696853,0.17703356,62901.0,62900.0,0.12798313]
[1719832697260,0.01809814,62901.0,62900.0,0.27738313]
[1719832697494,0.004,62901.0,62900.0,0.25738313]
[1719832697700,0.01414862,62901.0,62900.0,0.25738313]
[1719832697893,1.00670849,62901.0,62900.0,0.00084612]
[1719832698132,1.4961809,62901.0,62900.0,0.00084612]
[1719832698287,1.5001807,62901.0,62900.0,0.00084612]
[1719832699124,1.4961807,62901.0,62900.0,0.00084612]
[1719832699514,1.5001807,62901.0,62900.0,0.00084612]
[1719832700818,1.4971807,62901.0,62900.0,0.00084612]
[1719832701045,1.49718026,62901.0,62900.0,0.00084612]
[1719832701292,1.42978026,62901.0,62900.0,0.00184612]
[1719832701510,1.38078026,62901.0,62900.0,0.00184612]
[1719832701710,1.37978026,62901.0,62900.0,0.00184612]
[1719832701827,1.31038026,62901.0,62900.0,0.00284612]
[1719832702029,1.38362026,62901.0,62900.0,0.00284612]
[1719832702424,1.38062026,62901.0,62900.0,0.00084612]
[1719832702787,0.19000428,62901.0,62900.0,0.12534313]
[1719832702928,0.17683049,62901.0,62900.0,0.12534313]
[1719832703129,0.01785149,62901.0,62900.0,0.25584313]
[1719832703481,0.01785149,62901.0,62900.0,0.27584313]
[1719832703859,0.02285149,62901.0,62900.0,0.27684313]
[1719832704265,0.01785149,62901.0,62900.0,0.27584313]
[1719832704484,0.01985149,62901.0,62900.0,0.27584313]
[1719832704896,0.01598862,62901.0,62900.0,0.27584313]
[1719832705095,0.01798862,62901.0,62900.0,0.27584313]
[1719832705394,0.01498862,62901.0,62900.0,0.27484313]
[1719832705591,0.01498862,62901.0,62900.0,0.27584313]
[1719832705794,0.01798862,62901.0,62900.0,0.27584313]
[1719832706199,0.01798862,62901.0,62900.0,0.75179013]
[1719832706200,0.01498862,62901.0,62900.0,0.75179013]
[1719832706405,0.01498862,62901.0,62900.0,0.91412911]
[1719832706599,0.01498862,62901.0,62900.0,1.23409411]
[1719832706600,0.00484,62901.0,62900.0,1.23409411]
[1719832707321,0.00484,62901.0,62900.0,1.23209411]
[1719832707322,0.00084,62901.0,62900.0,1.23209411]
[1719832707620,0.00284,62901.0,62900.0,1.23209411]
[1719832708260,0.00284,62901.0,62900.0,1.24309411]
[1719832708463,0.00084,62901.0,62900.0,1.23209411]
[1719832708621,0.00084,62901.0,62900.0,1.23909411]
[1719832708816,0.00084,62901.0,62900.0,1.25309411]
[1719832709259,0.00084,62901.0,62900.0,1.24609411]
[1719832709499,0.00084,62901.0,62900.0,1.26009411]
[1719832711264,0.00084,62901.0,62900.0,0.94212911]
[1719832711551,0.00470287,62901.0,62900.0,0.30284313]
[1719832711706,0.00084,62901.0,62900.0,0.27814612]
[1719832712082,0.00923521,62901.0,62900.0,0.27814612]
[1719832712380,0.00923521,62901.0,62900.0,0.25814612]
[1719832712605,0.00923521,62901.0,62900.0,0.12764612]
[1719832712804,0.00084,62901.0,62900.0,0.24014612]
[1719832713025,0.00920775,62901.0,62900.0,0.24014612]
[1719832713248,0.00084,62901.0,62900.0,0.25414612]
[1719832713458,0.01309808,62901.0,62900.0,0.25414612]
[1719832713660,0.01309808,62901.0,62900.0,0.24014612]
[1719832713802,0.00923521,62901.0,62900.0,0.24014612]
[1719832714013,0.00923521,62901.0,62900.0,0.22614612]
[1719832714506,0.01023521,62901.0,62900.0,0.24014612]
[1719832714947,0.01023521,62901.0,62900.0,0.24814612]
[1719832715145,0.01023521,62901.0,62900.0,0.25414612]
[1719832715747,0.16921421,62901.0,62900.0,0.25414612]
[1719832716396,0.16921421,62901.0,62900.0,0.12764612]
[1719832718545,0.49103608,62901.0,62900.0,0.02884612]
[1719832718749,1.02406092,62901.0,62900.0,0.02884612]
[1719832719682,1.02406092,62901.0,62900.0,0.02084612]
[1719832720095,1.01389508,62901.0,62900.0,0.02084612]
[1719832720293,1.02706076,62901.0,62900.0,0.02084612]
[1719832720494,1.02606076,62901.0,62900.0,0.00084612]
[1719832720712,1.03206076,62901.0,62900.0,0.00084612]
[1719832720914,1.37821976,62901.0,62900.0,0.00084612]
[1719832721532,1.59681021,62901.0,62900.0,0.00084612]
[1719832721778,1.75914919,62901.0,62900.0,0.00084612]
[1719832722781,1.94004919,62901.0,62900.0,0.00084612]
[1719832723375,1.82145932,62901.0,62900.0,0.00084612]
[1719832724632,1.94006907,62901.0,62900.0,0.00084612]
[1719832724833,1.82145932,62901.0,62900.0,0.00084612]
[1719832725212,1.94006907,62901.0,62900.0,0.00084612]
[1719832725414,1.85086907,62901.0,62900.0,0.00084612]
[1719832725864,1.73225932,62901.0,62900.0,0.00084612]
[1719832726214,1.55135932,62901.0,62900.0,0.00084612]
[1719832726416,1.53819306,62901.0,62900.0,0.00084612]
[1719832726657,1.55136057,62901.0,62900.0,0.00084612]
[1719832727131,1.66997564,62901.0,62900.0,0.00084612]
[1719832729207,1.04877766,62901.0,62900.0,0.02591313]
[1719832729404,1.04877766,62901.0,62900.0,0.00084612]
[1719832729611,0.91699508,62901.0,62900.0,0.00084612]
[1719832729864,1.12119733,62901.0,62900.0,0.00084612]
[1719832730601,1.11519733,62901.0,62900.0,0.00084612]
[1719832730992,1.12119733,62901.0,62900.0,0.00084612]
[1719832731188,0.99656244,62901.0,62900.0,0.00084612]
[1719832731617,1.00256244,62901.0,62900.0,0.00084612]
[1719832732161,0.99956244,62901.0,62900.0,0.00084612]
[1719832732619,1.00256244,62901.0,62900.0,0.00084612]
[1719832732979,1.00256212,62901.0,62900.0,0.00084612]
[1719832733206,0.99956212,62901.0,62900.0,0.00084612]
[1719832733407,1.00256212,62901.0,62900.0,0.00084612]
[1719832736278,0.98939508,62901.0,62900.0,0.00084612]
[1719832736432,1.00256232,62901.0,62900.0,0.00084612]
[1719832736826,1.4828603,62901.0,62900.0,0.00084612]
[1719832739758,1.1649013,62901.0,62900.0,0.00084612]
[1719832740002,1.15173406,62901.0,62900.0,0.00084612]
[1719832740207,0.93016233,62901.0,62900.0,0.00084612]
[1719832740360,1.00256233,62901.0,62900.0,0.00084612]
[1719832741785,0.98939508,62901.0,62900.0,0.00084612]
[1719832741987,1.002565,62901.0,62900.0,0.00084612]
[1719832742408,1.002565,62901.0,62900.0,0.02715313]